bitfinex/quotes_ETHUSD_20251019
["timestamp","ask_amount","ask_price","bid_price","bid_amount"]
[1760851024514,0.4527,3914.1,3914.0,4.91653101]
[1760851025021,0.2228,3915.1,3915.0,4.28227841]
[1760851025336,0.86723564,3916.4,3915.1,2.41166465]
[1760851025542,0.86723564,3916.4,3916.3,1.728]
[1760851025696,0.86723564,3916.4,3916.3,4.91503053]
[1760851025903,0.76723564,3916.4,3916.3,4.91503053]
[1760851026140,0.76723564,3916.4,3916.3,5.6826876]
[1760851026438,0.8122,3921.6,3917.5,0.6336]
[1760851026696,0.2328,3920.6,3920.3,5.58982446]
[1760851026847,0.8122,3921.6,3920.3,15.16920946]
[1760851027006,0.27952145,3920.5,3920.4,7.60836012]
[1760851027203,0.76723564,3921.0,3920.8,4.27849989]
[1760851027405,0.8122,3921.6,3921.5,0.6336]
[1760851027638,0.8122,3921.6,3921.5,7.31782446]
[1760851027934,0.8122,3921.6,3919.0,0.1584]
[1760851027935,1.2429,3921.6,3919.0,0.1584]
[1760851028112,0.1869,3920.4,3919.1,0.02551606]
[1760851028442,0.2369,3921.0,3919.3,0.2197]
[1760851028742,4.95622446,3920.8,3918.3,0.24522127]
[1760851029035,0.2369,3921.0,3918.3,0.24522127]
[1760851029036,0.75621245,3920.7,3920.0,0.325]
[1760851029211,0.2369,3920.7,3920.0,0.325]
[1760851030134,0.2369,3920.7,3919.0,0.6336]
[1760851030457,0.2369,3920.7,3918.9,0.76714472]
[1760851030739,0.0444429,3920.3,3918.9,2.49514472]
[1760851031037,0.0444429,3920.3,3918.9,0.76714472]
[1760851031238,0.0444429,3920.3,3919.1,1.728]
[1760851031617,0.0444429,3920.3,3918.9,0.76714472]
[1760851031941,0.0444429,3920.3,3919.0,0.6336]
[1760851032434,0.0444429,3920.3,3919.2,0.6336]
[1760851032798,0.2369,3919.3,3919.0,1.728]
[1760851033004,0.2369,3919.3,3918.9,0.76714472]
[1760851033440,0.28136343,3919.3,3918.9,0.76714472]
[1760851034975,0.28136343,3919.3,3919.0,0.02551671]
[1760851035123,0.04446343,3919.3,3919.2,2.55154113]
[1760851035325,0.04446343,3919.3,3919.2,5.50272704]
[1760851035766,0.04446343,3919.3,3919.2,5.94442704]
[1760851036624,0.04446343,3919.3,3919.2,4.91314113]
[1760851037049,0.04446343,3919.3,3919.2,2.3616]
[1760851037252,0.04446343,3919.3,3919.2,1.728]
[1760851037661,0.04446343,3919.3,3919.2,2.12808189]
[1760851037961,0.40008322,3920.7,3919.5,0.6336]
[1760851038165,0.40008322,3920.7,3920.6,4.91223]
[1760851038350,0.40008322,3920.7,3920.6,4.27863]
[1760851038559,0.40008322,3920.7,3919.3,0.6336]
[1760851038869,0.40008322,3920.7,3920.6,0.76703292]
[1760851039030,0.2328,3922.0,3921.5,3.18364462]
[1760851039235,0.2998,3922.5,3921.5,5.35334462]
[1760851039864,0.2998,3922.5,3922.3,2.54952451]
[1760851040163,0.2998,3922.5,3922.3,4.27752451]
[1760851040366,0.2998,3922.5,3922.3,4.91112451]
[1760851040728,0.2998,3922.5,3921.6,0.6336]
[1760851040934,0.2998,3922.5,3922.3,2.54952451]
[1760851041244,0.2998,3922.5,3922.3,3.18312451]
[1760851041444,0.2998,3922.5,3922.3,2.54952451]
[1760851041808,0.2998,3922.5,3922.1,0.6336]
[1760851042010,0.2998,3922.5,3922.0,1.728]
[1760851042166,0.2998,3922.5,3921.8,1.728]
[1760851042366,0.2998,3922.5,3922.3,0.1272]
[1760851043299,0.2998,3922.5,3921.8,4.27784044]
[1760851043701,0.2998,3922.5,3921.6,0.6336]
[1760851043888,0.2998,3922.5,3921.9,2.54973112]
[1760851044290,0.04443467,3922.3,3921.3,2.55014293]
[1760851044469,0.04443467,3922.3,3921.4,1.728]
[1760851044979,0.2369,3921.5,3921.1,2.55025169]
[1760851045387,0.2369,3921.5,3920.6,3.31766022]
[1760851045564,0.2369,3921.5,3920.6,0.76703292]
[1760851045565,0.28134256,3921.5,3920.6,0.76703292]
[1760851046399,0.28134256,3921.5,3920.7,2.55055906]
[1760851046694,0.3999777,3921.3,3920.6,0.76703292]
[1760851047669,0.3999777,3921.3,3920.7,1.728]
[1760851047870,0.3999777,3921.3,3920.6,0.76703292]
[1760851048090,0.3999777,3921.3,3920.6,2.49503292]
[1760851048493,0.3999777,3921.3,3920.6,0.76703292]
[1760851049014,0.2369,3920.7,3920.6,0.76703292]
[1760851049698,0.63692532,3920.7,3919.3,4.95622446]
[1760851049905,0.63692532,3920.7,3919.7,2.55121323]
[1760851050088,0.63692532,3920.7,3919.7,0.7670898]
[1760851050415,0.2369,3919.8,3919.7,0.7670898]
[1760851050922,0.55931498,3920.6,3919.7,0.7670898]
[1760851051074,0.40011147,3919.8,3919.7,0.7670898]
[1760851051270,0.2369,3920.7,3919.7,0.7670898]
[1760851051473,4.95622446,3919.8,3916.5,22.98803376]
[1760851051678,0.40015799,3920.2,3916.5,22.98803376]
[1760851051679,4.95622446,3918.0,3916.7,0.76765412]
[1760851052012,0.73252245,3917.9,3916.5,0.4417]
[1760851052217,0.2369,3917.9,3916.7,1.728]
[1760851052570,0.2369,3917.9,3916.4,0.76767671]
[1760851052800,0.2369,3917.9,3916.2,2.55343683]
[1760851053019,0.2369,3917.9,3916.2,0.767716]
[1760851053368,0.2369,3917.9,3916.0,0.4417]
[1760851053369,0.1272,3917.4,3916.7,0.1272]
[1760851055702,0.04449464,3917.3,3916.7,0.1272]
[1760851056002,0.44490768,3917.3,3916.7,0.1272]
[1760851056203,0.2332,3917.2,3916.7,0.1272]
[1760851057618,0.1377,3917.1,3916.0,0.7677494]
[1760851057936,0.1272,3916.8,3916.2,0.1272]
[1760851058620,0.2649,3916.8,3916.2,0.1272]
[1760851058821,0.1377,3916.8,3915.7,0.2332]
[1760851059034,0.1272,3916.6,3916.0,0.1272]
[1760851059191,0.5494365,3916.7,3915.5,0.62014054]
[1760851059192,0.1377,3916.5,3915.5,0.62014054]
[1760851059517,0.1272,3916.3,3915.6,0.1272]
[1760851060222,0.5494365,3916.7,3915.7,0.47853821]
[1760851060406,1.9612,3917.2,3915.9,0.1292]
[1760851060407,0.1272,3916.6,3915.9,0.1292]
[1760851060614,0.2649,3916.9,3916.2,0.1272]
[1760851061603,0.2649,3916.9,3916.2,0.08719]
[1760851062001,0.04450129,3916.8,3916.2,0.08719]
[1760851062925,0.1377,3916.7,3915.9,0.002]
[1760851063125,0.1272,3916.4,3915.9,0.002]
[1760851063494,0.1377,3916.3,3915.9,0.002]
[1760851063708,0.182202,3916.3,3915.9,0.002]
[1760851063895,0.044502,3916.3,3915.9,0.002]
[1760851064107,0.44499523,3916.3,3915.9,0.002]
[1760851064429,0.44499523,3916.3,3915.9,0.02753691]
[1760851064625,0.44499523,3916.3,3916.0,0.453]
[1760851064825,0.44499523,3916.3,3916.1,0.0255356]
[1760851065031,0.44499523,3916.3,3916.1,0.2182]
[1760851065205,0.44499523,3916.3,3916.1,0.2437356]
[1760851065537,0.44499523,3916.3,3916.2,0.1272]
[1760851067803,0.44499523,3916.3,3916.2,0.5802]
[1760851068008,0.44499523,3916.3,3916.2,0.1272]
[1760851068405,0.44499523,3916.3,3916.2,2.55349573]
[1760851068712,0.044502,3916.3,3916.2,4.08190324]
[1760851069319,0.044502,3916.3,3916.2,4.31420324]
[1760851069605,0.044502,3916.3,3916.2,4.94780324]
[1760851069915,0.2323,3917.4,3916.6,2.55317602]
[1760851070315,0.1386,3917.8,3916.7,2.5531684]
[1760851071025,0.1386,3917.8,3916.6,2.57874828]
[1760851071626,0.1386,3917.8,3916.7,2.55315495]
[1760851072232,0.1386,3917.8,3916.8,2.55309623]
[1760851072519,0.1386,3918.2,3916.9,0.47853039]
[1760851072947,0.0444921,3917.9,3916.9,0.47853039]
[1760851073424,0.4199921,3917.9,3916.9,0.47853039]
[1760851073729,0.4199921,3917.9,3916.6,0.453]
[1760851073921,0.1423,3917.8,3916.6,0.453]
[1760851074116,0.2776921,3917.9,3916.6,0.453]
[1760851074117,0.1423,3917.7,3916.6,0.453]
[1760851074822,0.04449358,3917.5,3916.6,0.453]
[1760851075236,0.44490286,3917.5,3916.6,0.453]
[1760851075420,0.44490286,3917.5,3916.6,3.0062298]
[1760851075616,0.44490286,3917.5,3916.6,0.55596525]
[1760851075817,0.44490286,3917.5,3917.4,0.2182]
[1760851076461,0.44490286,3917.5,3916.5,0.453]
[1760851076952,0.58810286,3917.5,3916.6,1.728]
[1760851077130,0.58810286,3917.5,3916.5,2.181]
[1760851077339,0.40040928,3917.5,3916.6,0.47853234]
[1760851077651,0.40040928,3917.5,3916.9,2.55298319]
[1760851077863,0.40040928,3917.5,3917.0,0.02552974]
[1760851078046,0.40040928,3917.5,3917.0,0.47852974]
[1760851078225,0.40040928,3917.5,3917.0,3.03147643]
[1760851078556,0.40040928,3917.5,3917.1,0.6712]
[1760851078752,0.40040928,3917.5,3917.2,0.02552843]
[1760851079237,0.40040928,3917.5,3917.2,0.453]
[1760851079458,0.40040928,3917.5,3917.2,0.5802]
[1760851079672,0.40040928,3917.5,3917.2,0.1272]
[1760851079978,0.40040928,3917.5,3917.4,2.55271353]
[1760851080183,0.40040928,3917.5,3917.4,3.00571353]
[1760851080685,0.4448931,3917.5,3917.4,3.00571353]
[1760851084079,0.4448931,3917.5,3917.4,10.32353799]
[1760851084377,0.4448931,3917.5,3917.4,5.36731353]
[1760851084579,0.04448382,3917.5,3917.4,6.21466033]
[1760851084781,0.04448382,3917.5,3917.4,11.17088479]
[1760851084979,0.04448382,3917.5,3917.4,6.21466033]
[1760851087680,0.04448382,3917.5,3917.4,4.28071353]
[1760851088254,0.44479703,3917.5,3917.4,4.71951353]
[1760851089050,0.44479703,3917.5,3917.4,4.28071353]
[1760851090057,0.44479703,3917.5,3917.4,4.84671353]
[1760851091587,0.04448382,3917.5,3917.4,4.84671353]
[1760851091884,0.04448382,3917.5,3917.4,5.64455353]
[1760851092285,0.04448382,3917.5,3917.4,5.20575353]
[1760851092491,0.04448382,3917.5,3917.4,1.8552]
[1760851092780,0.20058382,3917.5,3917.4,2.67991353]
[1760851093381,0.20058382,3917.5,3917.4,0.1272]
[1760851093584,0.1561,3917.5,3917.4,0.1272]
[1760851094153,0.001,3917.8,3917.4,0.1272]
[1760851094486,0.1561,3917.7,3917.4,0.1272]
[1760851094674,0.1561,3917.6,3917.4,0.1272]
[1760851094988,0.1561,3917.5,3917.4,0.1272]
[1760851096076,0.1561,3917.5,3916.4,4.95622446]
[1760851096392,0.1561,3917.4,3917.2,0.1272]
[1760851096591,0.40035219,3917.6,3917.2,0.1272]
[1760851096768,0.1561,3917.3,3916.9,1.728]
[1760851097087,0.1561,3917.2,3916.6,0.1272]
[1760851097688,0.40041064,3917.1,3916.6,0.1272]
[1760851097988,0.1561,3917.0,3916.6,0.1272]
[1760851098189,0.2193,3916.7,3916.2,1.728]
[1760851098394,0.1689,3916.6,3916.4,1.8552]
[1760851098686,0.2193,3916.7,3916.4,1.8552]
[1760851098687,0.2193,3916.7,3916.5,2.55330014]
[1760851098889,0.2193,3916.7,3916.6,2.55323494]
[1760851099262,0.61973017,3916.7,3916.6,2.55323494]
[1760851099581,0.40043017,3916.7,3916.6,2.55323494]
[1760851100178,0.40043017,3916.7,3916.6,3.07661477]
[1760851100382,0.40043017,3916.7,3916.6,3.66114711]
[1760851100692,0.40043017,3916.7,3916.6,3.63561477]
[1760851101391,0.40043017,3916.7,3916.6,2.68043494]
[1760851101766,0.1689,3917.3,3916.9,2.5529819]
[1760851101968,0.1689,3917.3,3916.9,0.1272]
[1760851102190,0.1689,3917.2,3916.9,0.1272]
[1760851102394,0.2193,3917.6,3916.9,2.68022909]
[1760851102694,0.1689,3917.1,3916.9,2.68022909]
[1760851102901,0.0444899,3917.3,3917.0,2.55297421]
[1760851103472,0.1689,3917.2,3917.1,2.5529003]
[1760851103783,0.1689,3917.2,3917.0,2.55296756]
[1760851103981,0.0444899,3917.3,3917.0,2.55296756]
[1760851103982,0.0444899,3917.3,3917.2,2.55284386]
[1760851104190,0.0444899,3917.3,3917.2,2.57837229]
[1760851106023,0.0444899,3917.3,3917.1,0.1272]
[1760851106024,0.44486447,3917.3,3917.1,0.1272]
[1760851106324,0.44486447,3917.3,3917.2,3.18644386]
[1760851106530,0.40037457,3917.3,3917.2,6.81120685]
[1760851108421,0.40037457,3917.3,3917.2,10.48315285]
[1760851108621,0.001,3917.7,3917.2,10.48315285]
[1760851108622,0.001,3917.7,3917.6,3.18618321]
[1760851108815,0.40129452,3917.7,3917.6,8.14240767]
[1760851109017,0.40129452,3917.7,3917.6,9.25509561]
[1760851109217,0.40129452,3917.7,3917.6,9.68689561]
[1760851109527,0.40129452,3917.7,3917.6,11.41489561]
[1760851109730,0.40129452,3917.7,3917.6,4.91418321]
[1760851110749,0.40129452,3917.7,3917.6,5.34598321]
[1760851111721,0.001,3917.7,3917.6,5.34598321]
[1760851112633,0.001,3917.7,3917.6,4.28058321]
[1760851113733,0.1709,3917.7,3917.6,2.55258321]
[1760851115238,0.001,3917.7,3917.6,2.55258321]
[1760851116447,0.001,3917.7,3917.6,2.67978321]
[1760851120647,0.1714,3917.7,3917.6,2.67978321]
[1760851121152,0.1714,3917.7,3917.6,2.55258321]
[1760851122946,0.001,3917.7,3917.6,2.55258321]
[1760851123448,0.04548211,3917.7,3917.6,2.55258321]
[1760851124126,0.04548211,3917.7,3917.6,2.69095959]
[1760851125055,0.04548211,3917.7,3917.6,2.67978321]
[1760851125229,0.04548211,3917.7,3917.6,6.09627842]
[1760851125428,0.001,3917.8,3917.7,4.91411805]
[1760851125634,0.1901,3919.6,3918.4,4.91366206]
[1760851125841,0.1901,3919.6,3918.4,9.99708652]
[1760851126230,0.1901,3919.6,3918.4,10.45758652]
[1760851126435,0.1901,3919.6,3918.4,12.29946563]
[1760851126855,0.1901,3919.3,3918.4,12.29946563]
[1760851127033,0.2184,3920.0,3918.5,4.91359693]
[1760851127350,0.643,3920.0,3918.5,5.39615408]
[1760851127554,0.643,3920.0,3918.5,5.37409693]
[1760851128524,0.2184,3920.6,3918.8,5.0536]
[1760851128754,0.2084,3920.5,3920.4,2.55076012]
[1760851129260,0.60848534,3920.5,3920.4,2.55076012]
[1760851129555,0.60848534,3920.5,3919.8,2.55114416]
[1760851129756,0.2084,3920.4,3919.5,1.728]
[1760851129956,0.40008534,3920.5,3919.9,2.5510308]
[1760851130155,0.2084,3920.3,3920.1,2.55090259]
[1760851130350,0.2084,3920.3,3920.2,2.57639916]
[1760851130549,0.40008534,3920.5,3920.4,2.55076012]
[1760851130946,0.44454046,3920.5,3920.4,2.55076012]
[1760851132260,0.65294046,3920.5,3920.2,2.99542772]
[1760851132429,0.2084,3920.4,3920.2,2.99542772]
[1760851132624,0.2084,3920.3,3920.2,2.99542772]
[1760851132860,0.2084,3920.3,3919.7,1.728]
[1760851133034,0.2084,3920.2,3920.1,2.55094432]
[1760851133230,0.44454046,3920.5,3920.2,2.5508778]
[1760851133557,0.2084,3920.4,3920.2,2.5508778]
[1760851133958,0.2084,3920.4,3920.1,2.55095533]
[1760851134156,0.2084,3920.4,3920.0,0.44454046]
[1760851134378,0.2084,3920.4,3920.3,2.55082519]
[1760851134928,0.04445512,3920.5,3920.3,2.55082519]
[1760851135131,0.04445512,3920.5,3920.3,2.55078345]
[1760851135461,0.04445512,3920.5,3920.1,2.5509325]
[1760851135462,0.04445512,3920.5,3920.4,2.55076012]
[1760851136464,0.04445512,3920.5,3920.4,8.57146582]
[1760851136642,0.04445512,3920.5,3920.4,8.54595822]
[1760851136958,0.44447927,3920.5,3920.4,8.54595822]
[1760851137162,0.04445512,3920.5,3920.4,8.67315822]
[1760851137739,0.40002549,3921.1,3921.0,2.5503698]
[1760851138430,0.40002549,3921.1,3921.0,0.1272]
[1760851138635,0.40002549,3921.1,3921.0,2.6775698]
[1760851141069,0.40002549,3921.1,3921.0,3.16357349]
[1760851141387,0.62612549,3921.1,3921.0,0.40002549]
[1760851141697,0.62612549,3921.1,3920.4,2.55075002]
[1760851141880,0.2261,3921.0,3920.3,0.62612549]
[1760851142082,0.1997,3920.9,3920.3,3.17694913]
[1760851142285,0.4256,3920.9,3920.4,2.55076012]
[1760851142608,0.1997,3920.9,3920.3,3.17688723]
[1760851142754,0.1997,3920.9,3920.6,2.55057424]
[1760851142955,0.04445414,3921.1,3920.4,0.0255076]
[1760851143282,0.04445414,3921.1,3920.3,1.08662549]
[1760851143453,0.04445414,3921.1,3920.8,2.55043718]
[1760851143654,0.2256,3921.4,3920.8,2.55043718]
[1760851143889,0.2256,3921.4,3920.7,2.55054909]
[1760851144062,0.2256,3921.3,3920.5,2.5506341]
[1760851144272,0.2256,3921.2,3920.5,2.5506341]
[1760851144464,0.04445087,3921.6,3920.3,3.17694646]
[1760851144465,0.2256,3921.1,3920.3,0.62612549]
[1760851144784,0.2253,3921.0,3920.4,2.55073268]
[1760851144990,0.2005,3920.9,3920.4,2.55073268]
[1760851145289,0.2251,3920.8,3920.4,2.55073268]
[1760851145477,0.2251,3920.7,3920.4,2.55073268]
[1760851145785,0.2251,3920.6,3919.7,0.4605]
[1760851145987,0.2251,3920.6,3920.2,0.2251]
[1760851146156,0.2251,3920.5,3920.2,0.2251]
[1760851146356,0.62514973,3920.5,3920.2,0.2251]
[1760851146699,0.62514973,3920.5,3920.2,2.77598869]
[1760851146898,0.40004973,3920.5,3920.4,2.55076012]
[1760851148487,0.40004973,3920.5,3920.4,3.00286012]
[1760851149063,0.40004973,3920.5,3920.4,2.55076012]
[1760851149768,0.40104973,3920.5,3920.4,2.55076012]
[1760851149975,0.40104973,3920.5,3920.4,3.58074445]
[1760851151495,0.40104973,3920.5,3920.4,3.70794445]
[1760851151675,0.40104973,3920.5,3920.4,5.30874445]
[1760851152188,0.44549731,3920.5,3920.4,5.30874445]
[1760851153096,0.44549731,3920.5,3920.4,11.34406622]
[1760851153995,0.001,3920.9,3920.4,11.34406622]
[1760851153996,0.001,3920.9,3920.8,4.91209989]
[1760851154308,0.001,3920.9,3920.8,26.21465935]
[1760851154554,0.001,3920.9,3920.8,25.19004035]
[1760851155411,0.001,3920.9,3920.8,28.54338835]
[1760851155607,0.001,3921.3,3921.2,5.87583972]
[1760851155917,0.2998,3922.5,3922.3,3.18312451]
[1760851156120,0.2998,3922.5,3922.3,12.48034897]
[1760851156432,0.2998,3922.5,3922.3,10.31944897]
[1760851156610,0.2998,3922.5,3922.3,13.33328661]
[1760851159050,0.2998,3922.5,3922.3,10.26718661]
[1760851159214,0.2998,3922.5,3922.3,7.92396215]
[1760851159405,0.2998,3922.5,3922.3,4.67736215]
[1760851160835,0.4112,3922.4,3922.3,2.12783764]
[1760851161014,0.4112,3922.4,3922.3,1.728]
[1760851161333,0.213,3922.4,3922.3,4.27752451]
[1760851161736,0.213,3922.4,3922.3,4.40472451]
[1760851162510,0.213,3922.4,3922.3,1.8552]
[1760851162715,0.4112,3922.4,3922.3,1.8552]
[1760851162935,0.4112,3922.4,3922.3,4.40472451]
[1760851163233,0.4112,3922.4,3922.3,1.8552]
[1760851163437,0.4112,3922.4,3922.3,0.1272]
[1760851163935,0.4112,3922.4,3921.8,4.27781472]
[1760851163936,0.4112,3922.4,3922.0,0.1272]
[1760851164346,0.4112,3922.4,3921.9,0.4112]
[1760851164558,0.4112,3922.4,3921.7,1.728]
[1760851164559,0.1985,3922.3,3921.7,0.1272]
[1760851164834,0.1985,3922.3,3921.8,0.02549849]
[1760851165004,0.1988,3922.2,3921.9,0.1272]
[1760851165200,0.1988,3922.2,3922.0,2.57521666]
[1760851165760,0.213,3922.4,3922.1,2.54964512]
[1760851165944,0.39987181,3922.2,3922.0,2.57519949]
[1760851166229,0.39987181,3922.2,3922.1,2.54965452]
[1760851166935,0.39987181,3922.2,3922.1,4.27765452]
[1760851168106,0.39987181,3922.2,3922.1,1.728]
[1760851168522,0.59867181,3922.2,3922.0,0.39987181]
[1760851169011,0.39987181,3922.2,3922.1,2.54965452]
[1760851169546,0.214,3922.4,3922.3,2.54952451]
[1760851170252,0.214,3922.4,3922.3,2.84932451]
[1760851172036,0.25843395,3922.4,3922.3,2.84932451]
[1760851172851,0.25843395,3922.4,3922.3,5.21092451]
[1760851173021,0.25843395,3922.4,3922.3,4.57732451]
[1760851174258,0.25843395,3922.4,3922.3,8.44732451]
[1760851175742,0.25843395,3922.4,3922.3,6.71932451]
[1760851175948,0.25843395,3922.4,3922.3,2.84932451]
[1760851177077,0.25843395,3922.4,3922.3,0.427]
[1760851177274,0.59712054,3922.4,3920.9,0.002]
[1760851177438,0.25843395,3922.4,3921.4,5.64902446]
[1760851177641,0.25843395,3922.4,3922.0,2.54966483]
[1760851177843,0.39989211,3922.2,3922.1,2.54965452]
[1760851178257,0.39989211,3922.2,3922.0,2.54968664]
[1760851178454,0.39989211,3922.2,3922.0,0.5001]
[1760851178660,0.2003,3922.1,3922.0,0.5001]
[1760851178876,0.2003,3922.1,3921.7,2.54991096]
[1760851179074,0.2018,3922.0,3921.7,0.39989211]
[1760851179275,0.2253,3921.8,3921.7,0.39989211]
[1760851179474,0.4273,3921.8,3921.7,0.39989211]
[1760851179865,0.214,3922.4,3921.7,0.39989211]
[1760851180054,0.214,3922.4,3921.8,2.57533953]
[1760851180574,0.214,3922.4,3921.9,2.54972532]
[1760851180880,0.04443841,3922.3,3922.0,0.02549719]
[1760851181679,0.04443841,3922.3,3921.7,3.41499523]
[1760851181680,0.46943841,3922.3,3921.7,0.39989211]
[1760851182547,0.46943841,3922.3,3921.8,2.54979632]
[1760851182783,0.425,3922.2,3921.7,0.39989211]
[1760851183289,0.2018,3922.1,3921.7,0.39989211]
[1760851183460,0.2253,3921.8,3921.3,0.002]
[1760851183885,0.202,3921.7,3921.3,0.002]
[1760851184195,0.24644122,3921.7,3921.4,0.425]
[1760851184345,0.202,3921.6,3921.4,0.425]
[1760851184769,0.04444122,3921.7,3921.4,0.425]
[1760851184954,5.15822446,3921.6,3921.3,0.002]
[1760851185169,0.54279657,3921.5,3921.3,0.002]
[1760851185392,0.202,3921.6,3921.3,0.002]
[1760851185567,0.04444122,3921.7,3921.3,0.002]
[1760851185745,0.202,3921.4,3921.3,0.002]
[1760851188678,0.202,3921.4,3920.5,0.00194354]
[1760851189286,0.40003661,3921.2,3920.5,0.00194354]
[1760851189651,0.202,3921.1,3920.5,0.00194354]
[1760851190354,0.2008,3920.6,3920.5,0.00194354]
[1760851190863,0.4028,3920.6,3920.5,0.00194354]
[1760851191984,0.2008,3920.6,3920.5,0.00194354]
[1760851192572,0.4472571,3920.6,3920.5,0.00194354]
[1760851195894,0.0444571,3920.6,3920.5,0.00194354]
[1760851197002,0.44454832,3920.6,3920.5,0.00194354]
[1760851197674,0.40009122,3920.6,3920.5,0.00194354]
[1760851198697,0.52729122,3920.6,3920.5,0.00194354]
[1760851200491,0.52729122,3920.6,3920.5,0.46714354]
[1760851200702,0.40009122,3920.6,3920.5,0.00194354]
[1760851200998,0.1272,3920.8,3920.5,0.00194354]
[1760851201200,0.1272,3920.8,3920.5,0.46714354]
[1760851201403,0.1272,3920.8,3920.6,0.4652]
[1760851202767,0.1272,3920.8,3920.5,0.00194354]
[1760851202768,0.1775,3921.6,3920.5,0.00194354]
[1760851202968,0.1272,3921.3,3920.7,2.6777155]
[1760851203183,0.34425447,3922.5,3920.7,2.5505155]
[1760851203385,0.1272,3921.5,3920.9,0.1272]
[1760851204107,0.0444511,3921.4,3920.9,0.1272]
[1760851204302,0.62245934,3921.4,3920.9,0.1272]
[1760851204474,0.178,3921.3,3920.9,0.1272]
[1760851205485,0.001,3921.0,3920.9,0.1272]
[1760851206096,0.44546642,3921.0,3920.9,0.1272]
[1760851206806,0.44546642,3921.0,3920.9,0.598]
[1760851207579,0.44546642,3921.0,3920.9,0.1272]
[1760851208102,0.40101506,3921.0,3920.9,0.1272]
[1760851208310,0.40101506,3921.0,3920.9,0.598]
[1760851209070,0.001,3921.0,3920.9,0.598]
[1760851210007,0.001,3921.0,3920.9,0.1272]
[1760851211323,0.04544867,3921.0,3920.9,0.1272]
[1760851211525,0.22344867,3921.0,3920.9,0.1272]
[1760851212306,0.22344867,3921.0,3920.5,0.00194354]
[1760851212501,0.22344867,3921.0,3920.6,0.1272]
[1760851212728,0.22344867,3921.0,3920.6,2.67778393]
[1760851212930,0.04544867,3921.0,3920.6,2.67778393]
[1760851213430,0.04544867,3921.0,3920.6,3.15018393]
[1760851213830,0.04544867,3921.0,3920.6,0.5996]
[1760851214030,0.04544867,3921.0,3920.6,0.1272]
[1760851214233,0.22344867,3921.0,3920.6,0.1272]
[1760851214728,0.04544867,3921.0,3920.6,0.1272]
[1760851215226,0.3972,3920.9,3920.5,0.00194354]
[1760851215726,0.1838,3920.8,3920.5,0.00194354]
[1760851218422,0.1838,3920.7,3920.5,0.00194354]
[1760851218821,0.2192,3920.9,3920.5,0.00194354]
[1760851219126,0.1838,3920.6,3920.5,0.00194354]
[1760851219717,0.22825597,3920.6,3920.5,0.00194354]
[1760851219926,0.04445597,3920.6,3920.5,0.00194354]
[1760851222536,0.22855597,3920.6,3920.5,0.00194354]
[1760851223031,0.62862438,3920.6,3920.5,0.00194354]
[1760851226614,0.44452438,3920.6,3920.5,0.00194354]
[1760851227008,0.44452438,3920.6,3920.5,4.958168]
[1760851227235,0.44452438,3920.6,3920.5,8.47707986]
[1760851227510,0.44452438,3920.6,3920.5,0.00194354]
[1760851227711,0.62862438,3920.6,3920.5,0.00194354]
[1760851228243,0.58416841,3920.6,3920.5,0.00194354]
[1760851228444,0.40006841,3920.6,3920.5,0.00194354]
[1760851229844,0.58416841,3920.6,3920.5,0.00194354]
[1760851230445,0.1841,3920.6,3920.5,0.00194354]
[1760851231946,0.2188,3920.8,3920.5,0.00194354]
[1760851232542,0.2632557,3920.8,3920.5,0.00194354]
[1760851232744,0.0444557,3920.8,3920.5,0.00194354]
[1760851232916,0.001,3921.0,3920.5,0.00194354]
[1760851233353,0.1855,3921.0,3920.5,0.00194354]
[1760851233549,0.001,3921.0,3920.5,0.00194354]
[1760851233933,0.1855,3921.0,3920.5,0.00194354]
[1760851235128,0.001,3921.0,3920.5,0.00194354]
[1760851235333,0.1845,3920.9,3920.5,0.00194354]
[1760851235529,0.001,3921.0,3920.5,0.00194354]
[1760851235746,0.1845,3920.8,3920.5,0.00194354]
[1760851236357,0.4000451,3920.9,3920.5,0.00194354]
[1760851236558,0.4000451,3920.9,3920.5,3.0228357]
[1760851236856,0.44449847,3920.9,3920.5,0.00194354]
[1760851237056,0.1272,3920.8,3920.5,0.00194354]
[1760851237358,0.3117,3920.8,3920.5,0.00194354]
[1760851237536,0.1845,3920.7,3920.5,0.00194354]
[1760851238058,0.1272,3920.8,3920.5,0.00194354]
[1760851238859,0.1845,3920.7,3920.5,0.00194354]
[1760851239230,0.1272,3920.8,3920.5,0.00194354]
[1760851239426,0.1282,3920.8,3920.5,0.00194354]
[1760851239658,0.3127,3920.8,3920.5,0.00194354]
[1760851240134,0.1845,3920.7,3920.5,0.00194354]
[1760851240454,0.3127,3920.8,3920.5,0.00194354]
[1760851240660,0.1845,3920.7,3920.5,0.00194354]
[1760851241373,0.1845,3920.6,3920.5,0.00194354]
[1760851241756,0.7117682,3920.6,3920.5,0.00194354]
[1760851242546,0.5272682,3920.6,3920.5,0.00194354]
[1760851243236,0.7117682,3920.6,3920.5,0.00194354]
[1760851245440,0.3117,3920.6,3920.5,0.00194354]
[1760851245941,0.04545552,3920.8,3920.5,0.00194354]
[1760851246341,0.22995552,3920.8,3920.5,0.00194354]
[1760851248174,0.63002657,3920.8,3920.5,0.00194354]
[1760851248772,0.22995552,3920.8,3920.5,0.00194354]
[1760851252066,0.6300213,3920.8,3920.5,0.00194354]
[1760851253190,0.4455213,3920.8,3920.5,0.00194354]
[1760851253384,0.6300213,3920.8,3920.5,0.00194354]
[1760851254991,0.4455213,3920.8,3920.5,0.00194354]
[1760851255192,0.1845,3920.7,3920.5,0.00194354]
[1760851256111,0.4455213,3920.8,3920.5,0.00194354]
[1760851256890,0.1272,3920.6,3920.5,0.00194354]
[1760851265201,0.52725564,3920.6,3920.5,0.00194354]
[1760851266401,0.52725564,3920.6,3920.5,2.5526386]
[1760851266733,0.52725564,3920.6,3920.5,0.00194354]
[1760851267123,0.52725564,3920.6,3920.5,2.5526386]
[1760851267798,0.52725564,3920.6,3920.5,0.00194354]
[1760851268733,0.71175564,3920.6,3920.5,0.00194354]
[1760851271942,0.3117,3920.6,3920.5,0.00194354]
[1760851272641,0.1272,3920.6,3920.5,0.00194354]
[1760851273547,0.3117,3920.6,3920.5,0.00194354]
[1760851274067,0.1272,3920.6,3920.5,0.00194354]
[1760851274849,0.1282,3920.6,3920.5,0.00194354]
[1760851275363,0.52826381,3920.6,3920.5,0.00194354]
[1760851278450,0.57271864,3920.6,3920.5,0.00194354]